fUST/lending_fUST_20241029
["ID","MTS","AMOUNT","RATE_DAILY","PERIOD"]
[340977733,1730200233751,-597.51676405,0.00021917,3]
[340977734,1730200233760,-611.29,0.00021917,3]
[340977735,1730200233770,-500.0,0.00021917,3]
[340977736,1730200233781,-420.96085469,0.00021917,3]
[340977738,1730200238155,-500.0,0.00021914,2]
[340977739,1730200238165,-500.0,0.00021914,2]
[340977740,1730200238175,-500.0,0.00021914,2]
[340977741,1730200238184,-500.0,0.00021914,2]
[340977742,1730200238194,-500.0,0.00021914,2]
[340977743,1730200238203,-259.65748759,0.00021914,2]
[340977744,1730200238215,-500.0,0.00021914,2]
[340977745,1730200238226,-587.18659622,0.00021914,2]
[340977746,1730200238237,-500.0,0.00021914,2]
[340977747,1730200238248,-500.0,0.00021914,2]
[340977748,1730200238258,-500.0,0.00021914,2]
[340977749,1730200238268,-500.0,0.00021914,2]
[340977750,1730200238279,-500.0,0.00021914,2]
[340977751,1730200238288,-500.0,0.00021914,2]
[340977752,1730200238299,-500.0,0.00021914,2]
[340977753,1730200238309,-500.0,0.00021914,2]
[340977754,1730200238320,-500.0,0.00021914,2]
[340977755,1730200238330,-500.0,0.00021914,2]
[340977756,1730200238339,-500.0,0.00021914,2]
[340977757,1730200238350,-500.0,0.00021914,2]
[340977758,1730200238359,-500.0,0.00021914,2]
[340977759,1730200238368,-500.0,0.00021914,2]
[340977760,1730200238378,-630.87059792,0.00021914,2]
[340977761,1730200238387,-500.0,0.00021914,2]
[340977762,1730200238397,-500.0,0.00021914,2]
[340977763,1730200238408,-500.0,0.00021914,2]
[340977765,1730200238419,-500.0,0.00021914,2]
[340977767,1730200238429,-500.0,0.00021914,2]
[340977769,1730200238438,-500.0,0.00021914,2]
[340977770,1730200238448,-500.0,0.00021914,2]
[340977771,1730200238458,-500.0,0.00021914,2]
[340977772,1730200238470,-500.0,0.00021914,2]
[340977773,1730200238480,-500.0,0.00021914,2]
[340977774,1730200238492,-500.0,0.00021914,2]
[340977775,1730200238502,-500.0,0.00021914,2]
[340977776,1730200238511,-500.0,0.00021914,2]
[340977777,1730200238522,-500.0,0.00021914,2]
[340977778,1730200238532,-500.0,0.00021914,2]
[340977779,1730200238540,-500.0,0.00021914,2]
[340977780,1730200238550,-500.0,0.00021914,2]
[340977781,1730200238560,-500.0,0.00021914,2]
[340977782,1730200238571,-500.0,0.00021914,2]
[340977783,1730200238581,-500.0,0.00021914,2]
[340977784,1730200238593,-500.0,0.00021914,2]
[340977785,1730200238605,-500.0,0.00021914,2]
[340977786,1730200238616,-500.0,0.00021914,2]
[340977787,1730200238627,-430.6169495,0.00021914,2]
[340977788,1730200238636,-500.0,0.00021914,2]
[340977789,1730200238647,-500.0,0.00021914,2]
[340977790,1730200238657,-500.0,0.00021914,2]
[340977791,1730200238667,-500.0,0.00021914,2]
[340977792,1730200238681,-500.0,0.00021914,2]
[340977793,1730200238691,-500.0,0.00021914,2]
[340977794,1730200238702,-500.0,0.00021914,2]
[340977795,1730200238713,-500.0,0.00021914,2]
[340977796,1730200238725,-500.0,0.00021914,2]
[340977797,1730200238735,-500.0,0.00021914,2]
[340977798,1730200238744,-500.0,0.00021914,2]
[340977799,1730200238754,-500.0,0.00021914,2]
[340977800,1730200238764,-500.0,0.00021914,2]
[340977801,1730200238776,-273.04174796,0.00021914,2]
[340977802,1730200238787,-500.0,0.00021914,2]
[340977803,1730200238797,-500.0,0.00021914,2]
[340977804,1730200238808,-500.0,0.00021914,2]
[340977805,1730200238818,-500.0,0.00021914,2]
[340977806,1730200238828,-500.0,0.00021914,2]
[340977807,1730200238839,-500.0,0.00021914,2]
[340977808,1730200238850,-500.0,0.00021914,2]
[340977809,1730200238859,-79.03914531,0.00021917,3]
[340977810,1730200238869,-502.01,0.00021917,3]
[340977811,1730200238879,-500.0,0.00021917,3]
[340977812,1730200238890,-500.0,0.00021917,3]
[340977813,1730200238899,-500.0,0.00021917,3]
[340977814,1730200238910,-477.85499476,0.00021917,3]
[340977815,1730200238920,-500.0,0.00021917,3]
[340977816,1730200238930,-506.7205704,0.00021917,3]
[340977817,1730200238940,-500.0,0.00021917,3]
[340977818,1730200238954,-500.0,0.00021917,3]
[340977819,1730200238966,-500.0,0.00021917,3]
[340977820,1730200238975,-500.0,0.00021917,3]
[340977821,1730200238985,-500.0,0.00021917,3]
[340977822,1730200238995,-500.0,0.00021917,3]
[340977823,1730200239005,-515.75,0.00021917,3]
[340977824,1730200239014,-500.0,0.00021917,3]
[340977825,1730200239024,-159.28856172,0.00021917,3]
[340977826,1730200239034,-805.48,0.00021917,3]
[340977827,1730200239044,-511.48311671,0.00021917,3]
[340977828,1730200239055,-805.48,0.00021917,3]
[340977829,1730200239066,-500.0,0.00021917,3]
[340977830,1730200239075,-805.48,0.00021917,3]
[340977831,1730200239087,-805.48,0.00021917,3]
[340977832,1730200239097,-500.0,0.00021917,3]
[340977833,1730200239107,-805.48,0.00021917,3]
[340977834,1730200239117,-805.48,0.00021917,3]
[340977835,1730200239126,-805.48,0.00021917,3]
[340977836,1730200239135,-805.48,0.00021917,3]
[340977837,1730200239145,-805.48,0.00021917,3]
[340977838,1730200239155,-805.48,0.00021917,3]
[340977839,1730200239166,-805.48,0.00021917,3]
[340977840,1730200239177,-805.48,0.00021917,3]
[340977841,1730200239188,-805.48,0.00021917,3]
[340977842,1730200239198,-805.48,0.00021917,3]
[340977843,1730200239209,-805.48,0.00021917,3]
[340977844,1730200239221,-805.48,0.00021917,3]
[340977845,1730200239232,-500.0,0.00021917,3]
[340977846,1730200239242,-500.0,0.00021917,3]
[340977847,1730200239252,-500.0,0.00021917,3]
[340977848,1730200239262,-500.0,0.00021917,3]
[340977849,1730200239270,-677.4,0.00021917,3]
[340977850,1730200239281,-500.0,0.00021917,3]
[340977851,1730200239291,-500.0,0.00021917,3]
[340977852,1730200239300,-172.99454177,0.00021917,3]
[340977853,1730200239309,-500.0,0.00021917,3]
[340977854,1730200239318,-500.0,0.00021917,3]
[340977855,1730200239327,-500.0,0.00021917,3]
[340977856,1730200239336,-509.03321033,0.00021917,3]
[340977857,1730200239346,-500.0,0.00021917,3]
[340977858,1730200239355,-500.0,0.00021917,3]
[340977859,1730200239364,-504.11698583,0.00021917,3]
[340977860,1730200239373,-500.0,0.00021917,3]
[340977863,1730200239382,-640.56,0.00021917,3]
[340977864,1730200239486,-810.96,0.00021917,3]
[340977865,1730200239496,-500.0,0.00021917,3]
[340977866,1730200239505,-500.0,0.00021917,3]
[340977867,1730200239514,-500.0,0.00021917,3]
[340977868,1730200239524,-18789.3,0.00021917,3]
[340977869,1730200239533,-589.06540577,0.00021917,3]
[340977870,1730200239542,-500.0,0.00021917,3]
[340977871,1730200239551,-500.0,0.00021917,3]
[340977872,1730200239563,-500.0,0.00021917,3]
[340977873,1730200239572,-500.0,0.00021917,3]
[340977874,1730200239582,-687.49,0.00021917,3]
[340977875,1730200239591,-500.0,0.00021917,3]
[340977876,1730200239601,-500.0,0.00021917,3]
[340977877,1730200239610,-614.53,0.00021917,3]
[340977878,1730200239619,-500.0,0.00021917,3]
[340977879,1730200239629,-636.13095636,0.00021917,3]
[340977880,1730200239638,-500.0,0.00021917,3]
[340977881,1730200239647,-1936.23,0.00021917,3]
[340977882,1730200239656,-500.0,0.00021917,3]
[340977883,1730200239665,-517.24526909,0.00021917,3]
[340977884,1730200239674,-500.0,0.00021917,3]
[340977885,1730200239683,-500.0,0.00021917,3]
[340977886,1730200239692,-500.0,0.00021917,3]
[340977887,1730200239701,-500.0,0.00021917,3]
[340977888,1730200239711,-862.88,0.00021917,3]
[340977889,1730200239722,-500.0,0.00021917,3]
[340977890,1730200239731,-500.0,0.00021917,3]
[340977891,1730200239740,-500.0,0.00021917,3]
[340977892,1730200239749,-620.51122098,0.00021917,3]
[340977893,1730200239758,-500.0,0.00021917,3]
[340977894,1730200239767,-500.0,0.00021917,3]
[340977895,1730200239776,-500.0,0.00021917,3]
[340977896,1730200239786,-500.0,0.00021917,3]
[340977897,1730200239795,-419.44870416,0.00021917,3]
[340977898,1730200239805,-522.7,0.00021917,3]
[340977899,1730200239814,-500.0,0.00021917,3]
[340977900,1730200239823,-500.0,0.00021917,3]
[340977901,1730200239833,-500.0,0.00021917,3]
[340977902,1730200239843,-500.0,0.00021917,3]
[340977903,1730200239852,-500.0,0.00021917,3]
[340977904,1730200239861,-500.0,0.00021917,3]
[340977905,1730200239870,-1216.93,0.00021917,3]
[340977906,1730200239880,-590.81175406,0.00021917,3]
[340977907,1730200239890,-500.0,0.00021917,3]
[340977908,1730200239899,-500.0,0.00021917,3]
[340977909,1730200239910,-980.91,0.00021917,3]
[340977910,1730200239920,-500.0,0.00021917,3]
[340977911,1730200239929,-500.0,0.00021917,3]
[340977912,1730200239938,-500.0,0.00021917,3]
[340977913,1730200239953,-542.78913435,0.00021917,3]
[340977914,1730200239964,-384.08275237,0.00021917,3]
[340977915,1730200239974,-500.0,0.00021917,3]
[340977916,1730200239983,-512.99,0.00021917,3]
[340977917,1730200239994,-590.25215965,0.00021917,3]
[340977918,1730200240004,-1946.61,0.00021917,3]
[340977919,1730200240015,-503.6535082,0.00021917,3]
[340977920,1730200240027,-500.0,0.00021917,3]
[340977921,1730200240037,-552.75,0.00021917,3]
[340977922,1730200240047,-500.0,0.00021917,3]
[340977923,1730200240059,-500.0,0.00021917,3]
[340977924,1730200240069,-500.0,0.00021917,3]
[340977925,1730200240082,-327.14477703,0.00021917,3]
[340977926,1730200240092,-500.0,0.00021917,3]
[340977927,1730200240102,-178.57435663,0.00021917,3]
[340977928,1730200240113,-500.0,0.00021917,3]
[340977929,1730200240122,-500.0,0.00021917,3]
[340977930,1730200240133,-500.0,0.00021917,3]
[340977931,1730200240142,-500.0,0.00021917,3]
[340977932,1730200240151,-355.7722072,0.00021917,3]
[340977933,1730200240163,-500.0,0.00021917,3]
[340977934,1730200240174,-500.0,0.00021917,3]
[340977935,1730200240183,-673.38,0.00021917,3]
[340977936,1730200240192,-500.0,0.00021917,3]
[340977937,1730200240202,-560.51,0.00021917,3]
[340977938,1730200240211,-1718.84,0.00021917,3]
[340977939,1730200240223,-500.0,0.00021917,3]
[340977940,1730200240237,-546.72,0.00021917,3]
[340977941,1730200240246,-500.0,0.00021917,3]
[340977942,1730200240255,-798.08,0.00021917,3]
[340977943,1730200240264,-500.0,0.00021917,3]
[340977944,1730200240274,-500.0,0.00021917,3]
[340977945,1730200240283,-872.02,0.00021917,3]
[340977946,1730200240292,-1275.09,0.00021917,3]
[340977947,1730200240302,-500.0,0.00021917,3]
[340977948,1730200240311,-500.0,0.00021917,3]
[340977949,1730200240320,-500.0,0.00021917,3]
[340977950,1730200240330,-500.0,0.00021917,3]
[340977951,1730200240340,-515.81,0.00021917,3]
[340977952,1730200240349,-500.0,0.00021917,3]
[340977953,1730200240358,-500.0,0.00021917,3]
[340977954,1730200240369,-500.0,0.00021917,3]
[340977955,1730200240378,-705.72,0.00021917,3]
[340977956,1730200240387,-502.96447663,0.00021917,3]
[340977957,1730200240397,-522.94,0.00021917,3]
[340977958,1730200240407,-500.0,0.00021917,3]
[340977959,1730200240417,-514.12,0.00021917,3]
[340977960,1730200240426,-500.0,0.00021917,3]
[340977961,1730200240435,-500.0,0.00021917,3]
[340977962,1730200240444,-372.95848181,0.00021917,3]
[340977963,1730200240454,-500.0,0.00021917,3]
[340977964,1730200240465,-1779.71,0.00021917,3]
[340977965,1730200240474,-500.0,0.00021917,3]
[340977966,1730200240483,-500.0,0.00021917,3]
[340977967,1730200240492,-500.0,0.00021917,3]
[340977968,1730200240501,-500.92871969,0.00021917,2]
[340977969,1730200240510,-500.0,0.00021973,2]
[340977970,1730200240519,-502.84952735,0.00021973,2]
[340977971,1730200240528,-500.0,0.00021973,2]
[340977972,1730200240537,-500.0,0.00021973,2]
[340977973,1730200240547,-256.04624789,0.00021973,2]
[340977974,1730200240556,-500.0,0.00021973,2]
[340977975,1730200240566,-500.0,0.00021973,2]
[340977976,1730200240575,-247.4989763,0.00021974,2]
[340977977,1730200240585,-247.4989763,0.00022052,2]
[340977978,1730200240595,-805.48,0.0002209,3]
[340977979,1730200240604,-14916.45508835,0.00022091,2]
[340977980,1730200240613,-1000.0,0.00022091,2]
[340977981,1730200240623,-302.8122814,0.000221,2]
[340977982,1730200240634,-153.0,0.000221,2]
[340977983,1730200240644,-247.4989763,0.0002213,2]
[340977984,1730200240655,-805.48,0.00022172,3]
[340977985,1730200240666,-500.62371968,0.00022173,2]
[340977986,1730200240678,-500.0,0.00022173,2]
[340977987,1730200240689,-554.49841929,0.00022173,2]
[340977988,1730200240699,-500.0,0.00022173,2]
[340977989,1730200240711,-500.0,0.00022173,2]
[340977990,1730200240723,-162.07806198,0.00022173,2]
[340977991,1730200240732,-500.0,0.00022173,2]
[340977992,1730200240742,-501.27048359,0.00022173,2]
[340977993,1730200240751,-500.0,0.00022173,2]
[340977994,1730200240762,-500.0,0.00022173,2]
[340977995,1730200240771,-501.51344911,0.00022173,2]
[340977996,1730200240781,-262.92033605,0.00022173,2]
[340977997,1730200240791,-500.0,0.00022173,2]
[340977998,1730200240801,-500.0,0.00022173,2]
[340977999,1730200240810,-500.0,0.00022173,2]
[340978000,1730200240819,-500.0,0.00022173,2]
[340978001,1730200240829,-500.0,0.00022173,2]
[340978002,1730200240838,-500.82744298,0.00022173,2]
[340978003,1730200240847,-500.0,0.00022173,2]
[340978004,1730200240857,-500.0,0.00022173,2]
[340978005,1730200240866,-501.5204398,0.00022173,2]
[340978006,1730200240876,-223.23421121,0.0002219,2]
[340978007,1730200240885,-805.48,0.0002219,3]
[340978008,1730200240894,-805.48,0.0002219,3]
[340978009,1730200240904,-805.48,0.0002219,3]
[340978010,1730200240913,-805.48,0.0002219,3]
[340978011,1730200240923,-805.48,0.0002219,3]
[340978012,1730200240932,-805.69599109,0.0002219,3]
[340978013,1730200240941,-500.0,0.00022191,3]
[340978014,1730200240954,-500.0,0.00022191,3]
[340978015,1730200240965,-500.0,0.00022191,3]
[340978016,1730200240975,-500.0,0.00022191,3]
[340978017,1730200240984,-500.0,0.00022191,3]
[340978018,1730200240994,-500.0,0.00022191,3]
[340978019,1730200241003,-500.0,0.00022191,3]
[340978020,1730200241013,-500.0,0.00022191,3]
[340978021,1730200241023,-548.79298828,0.00022191,3]
[340978022,1730200241032,-500.0,0.00022191,3]
[340978023,1730200241041,-653.95,0.00022191,3]
[340978024,1730200241051,-500.0,0.00022191,3]
[340978025,1730200241060,-500.0,0.00022191,3]
[340978026,1730200241070,-500.0,0.00022191,3]
[340978027,1730200241079,-500.0,0.00022191,3]
[340978028,1730200241089,-782.0,0.00022191,3]
[340978029,1730200241098,-500.0,0.00022191,3]
[340978030,1730200241191,-500.0,0.00022191,3]
[340978031,1730200241201,-500.0,0.00022191,3]
[340978032,1730200241210,-500.0,0.00022191,3]
[340978033,1730200241220,-505.30565573,0.00022191,3]
[340978034,1730200241229,-500.0,0.00022191,3]
[340978035,1730200241239,-500.0,0.00022191,3]
[340978036,1730200241248,-500.0,0.00022191,3]
[340978037,1730200241257,-244.83777295,0.00022191,3]
[340978038,1730200241266,-500.0,0.00022191,3]
[340978039,1730200241275,-500.0,0.00022191,3]
[340978040,1730200241285,-521.66938117,0.00022191,3]
[340978041,1730200241295,-500.0,0.00022191,3]
[340978042,1730200241305,-500.0,0.00022191,3]
[340978043,1730200241314,-500.0,0.00022191,3]
[340978044,1730200241323,-500.0,0.00022191,3]
[340978045,1730200241334,-500.0,0.00022191,3]
[340978046,1730200241343,-500.0,0.00022191,3]
[340978047,1730200241355,-500.0,0.00022191,3]
[340978048,1730200241365,-500.0,0.00022191,3]
[340978049,1730200241378,-500.0,0.00022191,3]
[340978050,1730200241388,-654.3,0.00022191,3]
[340978051,1730200241398,-500.0,0.00022191,3]
[340978052,1730200241407,-517.28620025,0.00022191,3]
[340978053,1730200241418,-500.0,0.00022191,3]
[340978054,1730200241429,-320.51655373,0.00022191,3]
[340978055,1730200241438,-500.0,0.00022191,3]
[340978056,1730200241448,-500.0,0.00022191,3]
[340978057,1730200241457,-500.0,0.00022191,3]
[340978058,1730200241467,-500.0,0.00022191,3]
[340978059,1730200241478,-500.0,0.00022191,3]
[340978060,1730200241487,-500.0,0.00022191,3]
[340978061,1730200241500,-500.0,0.00022191,3]
[340978062,1730200241510,-363.6601971,0.00022191,3]
[340978063,1730200241523,-500.0,0.00022191,3]
[340978064,1730200241532,-540.49181485,0.00022191,3]
[340978065,1730200241543,-500.0,0.00022191,3]
[340978066,1730200241554,-500.0,0.00022191,3]
[340978067,1730200241568,-502.516635,0.00022191,3]
[340978068,1730200241579,-564.75,0.00022191,3]
[340978069,1730200241590,-500.0,0.00022191,3]
[340978070,1730200241602,-500.0,0.00022191,3]
[340978071,1730200241612,-570.59366314,0.00022191,3]
[340978072,1730200241623,-500.0,0.00022191,3]
[340978073,1730200241634,-636.88,0.00022191,3]
[340978074,1730200241645,-504.96750137,0.00022191,3]
[340978075,1730200241657,-500.0,0.00022191,3]
[340978076,1730200241667,-500.0,0.00022191,3]
[340978077,1730200241677,-500.0,0.00022191,3]
[340978078,1730200241688,-500.0,0.00022191,3]
[340978079,1730200241699,-500.0,0.00022191,3]
[340978080,1730200241710,-500.0,0.00022191,3]
[340978081,1730200241721,-500.0,0.00022191,3]
[340978082,1730200241733,-324.59531888,0.00022191,3]
[340978083,1730200241742,-500.0,0.00022191,2]
[340978084,1730200241753,-500.0,0.00022191,3]
[340978085,1730200241762,-500.0,0.00022191,3]
[340978086,1730200241772,-500.0,0.00022191,3]
[340978087,1730200241782,-500.0,0.00022191,3]
[340978088,1730200241791,-500.0,0.00022191,3]
[340978089,1730200241802,-500.0,0.00022191,3]
[340978090,1730200241813,-500.0,0.00022191,3]
[340978091,1730200241824,-500.0,0.00022191,3]
[340978092,1730200241833,-500.0,0.00022191,3]
[340978093,1730200241842,-500.0,0.00022191,3]
[340978094,1730200241854,-565.85661365,0.00022191,3]
[340978095,1730200241864,-500.0,0.00022191,3]
[340978096,1730200241875,-502.59242908,0.00022191,3]
[340978097,1730200241886,-500.0,0.00022191,3]
[340978098,1730200241896,-752.86,0.00022191,3]
[340978099,1730200241907,-522.16558505,0.00022191,3]
[340978100,1730200241918,-794.02,0.00022191,3]
[340978101,1730200241930,-500.0,0.00022191,3]
[340978102,1730200241942,-500.0,0.00022191,3]
[340978103,1730200241957,-518.45153168,0.00022191,3]
[340978104,1730200241968,-500.0,0.00022191,3]
[340978105,1730200241978,-500.0,0.00022191,3]
[340978106,1730200241989,-500.0,0.00022191,3]
[340978107,1730200242000,-430.08687153,0.00022191,3]
[340978108,1730200242010,-840.91,0.00022191,3]
[340978109,1730200242021,-500.0,0.00022191,3]
[340978110,1730200242031,-500.0,0.00022191,3]
[340978111,1730200242043,-500.0,0.00022191,3]
[340978112,1730200242053,-712.91,0.00022191,3]
[340978113,1730200242063,-500.0,0.00022191,3]
[340978114,1730200242072,-500.0,0.00022191,3]
[340978115,1730200242083,-729.71,0.00022191,3]
[340978116,1730200242093,-535.35,0.00022191,3]
[340978117,1730200242102,-500.0,0.00022191,3]
[340978118,1730200242111,-500.0,0.00022191,3]
[340978119,1730200242120,-500.0,0.00022191,3]
[340978120,1730200242130,-500.0,0.00022191,3]
[340978121,1730200242140,-555.7,0.00022191,3]
[340978122,1730200242149,-500.0,0.00022191,3]
[340978123,1730200242159,-500.0,0.00022191,3]
[340978124,1730200242169,-502.11,0.00022191,3]
[340978125,1730200242179,-508.72501605,0.00022191,3]
[340978126,1730200242189,-500.0,0.00022191,3]
[340978127,1730200242198,-613.84,0.00022191,3]
[340978128,1730200242208,-500.0,0.00022191,3]
[340978129,1730200242219,-500.0,0.00022191,3]
[340978130,1730200242228,-500.0,0.00022191,3]
[340978131,1730200242238,-500.0,0.00022191,3]
[340978132,1730200242248,-268.273165,0.00022191,7]
[340978133,1730200242258,-500.0,0.00022191,3]
[340978134,1730200242267,-550.89,0.00022191,3]
[340978135,1730200242276,-594.67030515,0.00022191,3]
[340978136,1730200242286,-500.0,0.00022191,3]
[340978137,1730200242296,-500.0,0.00022191,3]
[340978138,1730200242306,-500.0,0.00022191,3]
[340978139,1730200242315,-500.0,0.00022191,3]
[340978140,1730200242324,-500.0,0.00022191,3]
[340978141,1730200242334,-581.96827256,0.00022191,3]
[340978142,1730200242343,-568.63,0.00022191,3]
[340978143,1730200242354,-500.0,0.00022191,3]
[340978144,1730200242363,-500.0,0.00022191,3]
[340978145,1730200242373,-500.0,0.00022191,3]
[340978146,1730200242382,-500.0,0.00022191,3]
[340978147,1730200242391,-610.3,0.00022191,3]
[340978148,1730200242401,-500.0,0.00022191,3]
[340978149,1730200242410,-500.0,0.00022191,3]
[340978150,1730200242420,-500.0,0.00022191,3]
[340978151,1730200242429,-500.0,0.00022191,3]
[340978152,1730200242439,-508.26893357,0.00022191,3]
[340978153,1730200242449,-200.0,0.00022191,3]
[340978154,1730200242459,-500.0,0.00022191,3]
[340978155,1730200242469,-500.0,0.00022191,3]
[340978157,1730200242478,-500.0,0.00022191,3]
[340978158,1730200242487,-500.0,0.00022191,3]
[340978160,1730200242497,-518.45028389,0.00022191,3]
[340978162,1730200242506,-500.0,0.00022191,3]
[340978163,1730200242515,-500.0,0.00022191,3]
[340978164,1730200242525,-264.98084242,0.00022191,3]
[340978165,1730200242535,-500.0,0.00022191,3]
[340978166,1730200242544,-500.0,0.00022191,3]
[340978167,1730200242553,-500.0,0.00022191,3]
[340978168,1730200242564,-500.0,0.00022191,3]
[340978169,1730200242575,-500.0,0.00022191,3]
[340978170,1730200242586,-151.0,0.00022191,7]
[340978171,1730200242597,-568.01302933,0.00022191,3]
[340978172,1730200242607,-500.0,0.00022191,2]
[340978173,1730200242619,-500.0,0.00022191,3]
[340978174,1730200242628,-500.0,0.00022191,2]
[340978175,1730200242638,-500.0,0.00022191,3]
[340978176,1730200242648,-500.0,0.00022191,3]
[340978177,1730200242658,-500.0,0.00022191,3]
[340978178,1730200242668,-514.8992849,0.00022191,3]
[340978179,1730200242677,-500.0,0.00022191,3]
[340978180,1730200242687,-505.73526019,0.00022191,3]
[340978181,1730200242696,-500.0,0.00022191,3]
[340978182,1730200242706,-500.0,0.00022191,3]
[340978183,1730200242717,-500.0,0.00022191,3]
[340978184,1730200242727,-500.0,0.00022191,3]
[340978185,1730200242736,-696.51,0.00022191,3]
[340978186,1730200242827,-500.0,0.00022191,3]
[340978187,1730200242838,-964.84,0.00022191,3]
[340978188,1730200242847,-945.83,0.00022191,3]
[340978189,1730200242857,-500.0,0.00022191,3]
[340978190,1730200242867,-500.0,0.00022191,3]
[340978191,1730200242876,-500.0,0.00022191,3]
[340978192,1730200242886,-500.0,0.00022191,3]
[340978193,1730200242896,-500.0,0.00022191,3]
[340978194,1730200242906,-500.0,0.00022191,3]
[340978196,1730200242916,-816.2,0.00022191,3]
[340978198,1730200242926,-500.0,0.00022191,3]
[340978200,1730200242937,-528.94,0.00022191,3]
[340978202,1730200242949,-500.0,0.00022191,3]
[340978204,1730200242960,-500.0,0.00022191,3]
[340978206,1730200242970,-500.0,0.00022191,3]
[340978208,1730200242980,-151.0,0.00022191,7]
[340978209,1730200242991,-500.0,0.00022191,3]
[340978210,1730200243000,-503.0004923,0.00022191,3]
[340978211,1730200243010,-500.0,0.00022191,3]
[340978212,1730200243020,-500.0,0.00022191,3]
[340978213,1730200243030,-500.0,0.00022191,3]
[340978214,1730200243040,-500.0,0.00022191,3]
[340978215,1730200243050,-500.0,0.00022191,3]
[340978216,1730200243060,-278.19012656,0.00022191,3]
[340978217,1730200243070,-589.44,0.00022191,3]
[340978218,1730200243080,-500.0,0.00022191,3]
[340978219,1730200243090,-500.0,0.00022191,3]
[340978220,1730200243100,-500.0,0.00022191,3]
[340978221,1730200243109,-503.93493787,0.00022191,3]
[340978222,1730200243120,-500.0,0.00022191,3]
[340978223,1730200243130,-500.0,0.00022191,3]
[340978224,1730200243140,-426.51771158,0.00022191,3]
[340978225,1730200243149,-500.0,0.00022191,3]
[340978226,1730200243159,-500.0,0.00022191,3]
[340978227,1730200243168,-500.0,0.00022191,3]
[340978228,1730200243177,-500.0,0.00022191,3]
[340978229,1730200243187,-500.0,0.00022191,3]
[340978230,1730200243197,-500.0,0.00022191,3]
[340978231,1730200243207,-500.0,0.00022191,3]
[340978232,1730200243217,-500.0,0.00022191,3]
[340978233,1730200243227,-560.43,0.00022191,3]
[340978234,1730200243236,-500.0,0.00022191,3]
[340978235,1730200243246,-500.0,0.00022191,3]
[340978236,1730200243255,-405.09161382,0.00022191,3]
[340978237,1730200243266,-500.0,0.00022191,3]
[340978238,1730200243275,-559.28,0.00022191,3]
[340978239,1730200243285,-500.0,0.00022191,3]
[340978240,1730200243294,-500.0,0.00022191,3]
[340978241,1730200243304,-500.0,0.00022191,3]
[340978242,1730200243314,-500.0,0.00022191,3]
[340978243,1730200243323,-303.73224255,0.00022191,3]
[340978244,1730200243333,-506.24896667,0.00022191,3]
[340978245,1730200243343,-500.0,0.00022191,3]
[340978246,1730200243352,-500.0,0.00022191,3]
[340978247,1730200243362,-500.0,0.00022191,3]
[340978248,1730200243371,-500.0,0.00022191,3]